fUSD/lending_fUSD_20241125
["ID","MTS","AMOUNT","RATE_DAILY","PERIOD"]
[343261989,1732535784438,-500.0,0.00038904,21]
[343261990,1732535784467,-500.0,0.00038904,21]
[343261991,1732535784496,-447.68694643,0.00038904,21]
[343261992,1732535784524,-500.0,0.00038904,21]
[343261993,1732535784552,-500.0,0.00038904,21]
[343261994,1732535784580,-500.0,0.00038904,21]
[343261995,1732535784607,-513.14289459,0.00038904,21]
[343261996,1732535784636,-1000.0,0.00038904,21]
[343261997,1732535784666,-500.0,0.00038904,21]
[343261998,1732535784695,-500.0,0.00038904,21]
[343261999,1732535784724,-500.0,0.00038904,21]
[343262000,1732535784752,-500.0,0.00038904,21]
[343262001,1732535784780,-500.0,0.00038904,21]
[343262002,1732535784809,-500.0,0.00038904,21]
[343262003,1732535784998,-500.0,0.00038904,21]
[343262004,1732535785026,-939.05,0.00038904,21]
[343262005,1732535785054,-628.75,0.00038904,21]
[343262006,1732535785083,-500.0,0.00038904,21]
[343262007,1732535785113,-500.0,0.00038904,21]
[343262008,1732535785142,-636.92,0.00038904,21]
[343262009,1732535785171,-500.0,0.00038904,21]
[343262010,1732535785199,-2031.54866426,0.00038904,30]
[343262011,1732535785227,-500.0,0.00038904,21]
[343262012,1732535785257,-500.0,0.00038904,21]
[343262013,1732535785286,-500.0,0.00038904,21]
[343262014,1732535785314,-500.0,0.00038904,21]
[343262015,1732535785342,-509.12417314,0.00038904,21]
[343262016,1732535785370,-500.0,0.00038904,21]
[343262017,1732535785398,-500.0,0.00038904,21]
[343262018,1732535785428,-500.0,0.00038904,21]
[343262019,1732535785457,-500.0,0.00038904,21]
[343262020,1732535785487,-500.0,0.00038904,21]
[343262021,1732535785515,-468.77646303,0.00038904,21]
[343262022,1732535785544,-500.0,0.00038904,21]
[343262023,1732535785572,-500.0,0.00038904,21]
[343262024,1732535785600,-500.0,0.00038904,21]
[343262025,1732535785629,-500.0,0.00038904,21]
[343262026,1732535785657,-500.0,0.00038904,21]
[343262027,1732535785688,-500.0,0.00038904,21]
[343262028,1732535785717,-500.0,0.00038904,21]
[343262029,1732535785745,-500.0,0.00038904,21]
[343262030,1732535785774,-500.0,0.00038904,21]
[343262031,1732535785801,-740.82,0.00038904,21]
[343262032,1732535785829,-500.0,0.00038904,21]
[343262033,1732535785857,-508.68,0.00038904,21]
[343262034,1732535785888,-713.37,0.00038904,21]
[343262035,1732535785920,-500.0,0.00038904,21]
[343262036,1732535785948,-747.44,0.00038904,21]
[343262037,1732535785977,-500.0,0.00038904,21]
[343262038,1732535786005,-681.24,0.00038904,21]
[343262039,1732535786032,-500.0,0.00038904,21]
[343262040,1732535786066,-1032.25,0.00038904,21]
[343262041,1732535786094,-500.0,0.00038904,21]
[343262042,1732535786122,-500.0,0.00038904,21]
[343262043,1732535786149,-500.0,0.00038904,21]
[343262044,1732535786180,-963.68,0.00038904,21]
[343262045,1732535786211,-500.0,0.00038904,21]
[343262046,1732535786240,-511.95094934,0.00038904,21]
[343262047,1732535786268,-500.0,0.00038904,21]
[343262048,1732535786297,-504.56,0.00038904,21]
[343262049,1732535786325,-500.0,0.00038904,21]
[343262050,1732535786352,-500.0,0.00038904,21]
[343262051,1732535786381,-500.0,0.00038904,21]
[343262052,1732535786409,-500.0,0.00038904,21]
[343262053,1732535786437,-500.0,0.00038904,21]
[343262054,1732535786467,-500.0,0.00038904,21]
[343262055,1732535786496,-500.0,0.00038904,21]
[343262056,1732535786523,-1000.0,0.00038904,21]
[343262057,1732535786551,-500.0,0.00038904,21]
[343262058,1732535786578,-500.0,0.00038904,21]
[343262059,1732535786607,-500.0,0.00038904,21]
[343262060,1732535786636,-500.0,0.00038904,21]
[343262061,1732535786666,-500.0,0.00038904,21]
[343262062,1732535786693,-500.0,0.00038904,21]
[343262063,1732535786721,-500.0,0.00038904,21]
[343262064,1732535786748,-500.0,0.00038904,21]
[343262065,1732535786776,-500.0,0.00038904,21]
[343262066,1732535786804,-501.95739433,0.00038904,21]
[343262067,1732535786833,-500.0,0.00038904,21]
[343262068,1732535786863,-500.0,0.00038904,21]
[343262069,1732535786896,-500.0,0.00038904,21]
[343262070,1732535786926,-500.0,0.00038904,21]
[343262071,1732535786960,-500.0,0.00038904,21]
[343262072,1732535786989,-202.2,0.00038904,21]
[343262073,1732535787017,-500.0,0.00038904,21]
[343262074,1732535787045,-500.0,0.00038904,21]
[343262075,1732535787075,-500.0,0.00038904,21]
[343262076,1732535787103,-399.75555326,0.00038904,21]
[343262077,1732535787131,-1989.85,0.00038904,21]
[343262078,1732535787160,-500.0,0.00038904,21]
[343262079,1732535787190,-500.0,0.00038904,21]
[343262080,1732535787218,-585.46,0.00038904,21]
[343262081,1732535787246,-500.0,0.00038904,21]
[343262082,1732535787273,-559.55,0.00038904,21]
[343262083,1732535787300,-500.0,0.00038904,21]
[343262084,1732535787328,-500.0,0.00038904,21]
[343262085,1732535787354,-1376.46,0.00038904,21]
[343262086,1732535787382,-500.0,0.00038904,21]
[343262087,1732535787410,-500.0,0.00038904,21]
[343262088,1732535787440,-500.0,0.00038904,21]
[343262089,1732535787469,-500.0,0.00038904,21]
[343262090,1732535787498,-500.0,0.00038904,21]
[343262091,1732535787528,-203.83,0.00038904,21]
[343262092,1732535787560,-637.23,0.00038904,21]
[343262093,1732535787592,-500.0,0.00038904,21]
[343262094,1732535787623,-500.0,0.00038904,21]
[343262095,1732535787653,-500.0,0.00038904,21]
[343262096,1732535787685,-500.0,0.00038904,21]
[343262097,1732535787716,-500.0,0.00038904,21]
[343262098,1732535787747,-500.0,0.00038904,21]
[343262099,1732535787781,-500.0,0.00038904,21]
[343262100,1732535787813,-500.0,0.00038904,21]
[343262101,1732535787842,-500.0,0.00038904,21]
[343262102,1732535787876,-500.0,0.00038904,21]
[343262103,1732535787907,-500.0,0.00038904,21]
[343262104,1732535787938,-500.0,0.00038904,21]
[343262105,1732535787968,-500.0,0.00038904,21]
[343262106,1732535787996,-536.64,0.00038904,21]
[343262107,1732535788024,-500.0,0.00038904,21]
[343262108,1732535788052,-500.0,0.00038904,21]
[343262109,1732535788080,-500.0,0.00038904,21]
[343262110,1732535788109,-500.0,0.00038904,21]
[343262111,1732535788137,-500.0,0.00038904,21]
[343262112,1732535788165,-500.0,0.00038904,21]
[343262113,1732535788193,-771.66,0.00038904,21]
[343262114,1732535788223,-500.0,0.00038904,21]
[343262115,1732535788250,-500.0,0.00038904,21]
[343262116,1732535788278,-500.0,0.00038904,21]
[343262117,1732535788306,-500.0,0.00038904,21]
[343262118,1732535788335,-500.0,0.00038904,21]
[343262119,1732535788363,-500.0,0.00038904,21]
[343262120,1732535788391,-500.0,0.00038904,21]
[343262121,1732535788421,-500.0,0.00038904,21]
[343262122,1732535788448,-500.0,0.00038904,21]
[343262123,1732535788477,-500.0,0.00038904,21]
[343262124,1732535788505,-500.0,0.00038904,21]
[343262125,1732535788535,-635.51,0.00038904,21]
[343262126,1732535788564,-500.0,0.00038904,21]
[343262127,1732535788593,-10073.3,0.00038904,21]
[343262128,1732535788621,-500.0,0.00038904,21]
[343262129,1732535788650,-500.0,0.00038904,21]
[343262130,1732535788680,-234.71,0.00038904,21]
[343262131,1732535788708,-500.0,0.00038904,21]
[343262132,1732535788737,-500.0,0.00038904,21]
[343262133,1732535788764,-542.12,0.00038904,21]
[343262134,1732535788793,-500.0,0.00038904,21]
[343262135,1732535788821,-500.0,0.00038904,21]
[343262136,1732535788848,-500.0,0.00038904,21]
[343262137,1732535788881,-500.0,0.00038904,21]
[343262138,1732535788909,-594.38,0.00038904,21]
[343262139,1732535788942,-500.0,0.00038904,21]
[343262140,1732535788970,-3316.78,0.00038904,21]
[343262141,1732535788999,-500.0,0.00038904,21]
[343262142,1732535789028,-500.0,0.00038904,21]
[343262143,1732535789055,-1516.6,0.00038904,21]
[343262144,1732535789083,-500.0,0.00038904,21]
[343262145,1732535789111,-500.0,0.00038904,21]
[343262146,1732535789140,-500.0,0.00038904,21]
[343262147,1732535789171,-2326.47,0.00038904,21]
[343262148,1732535789200,-602.69,0.00038904,21]
[343262149,1732535789231,-500.0,0.00038904,21]
[343262150,1732535789259,-500.0,0.00038904,21]
[343262151,1732535789290,-500.0,0.00038904,21]
[343262152,1732535789320,-500.0,0.00038904,21]
[343262153,1732535789352,-1306.74,0.00038904,21]
[343262154,1732535789385,-8053.63,0.00038904,21]
[343262155,1732535789416,-500.0,0.00038904,21]
[343262156,1732535789445,-500.0,0.00038904,21]
[343262157,1732535789474,-913.11,0.00038904,21]
[343262158,1732535789501,-500.0,0.00038904,21]
[343262159,1732535789531,-500.0,0.00038904,21]
[343262160,1732535789559,-500.0,0.00038904,21]
[343262161,1732535789587,-500.0,0.00038904,21]
[343262162,1732535789618,-500.0,0.00038904,21]
[343262163,1732535789647,-1129.77,0.00038904,21]
[343262164,1732535789676,-599.01097511,0.00038904,21]
[343262165,1732535789706,-500.0,0.00038904,21]
[343262166,1732535789735,-897.77,0.00038904,21]
[343262167,1732535789764,-500.0,0.00038904,21]
[343262168,1732535789794,-1044.85,0.00038904,21]
[343262169,1732535789826,-500.0,0.00038904,21]
[343262170,1732535789858,-500.0,0.00038904,21]
[343262171,1732535789892,-726.59,0.00038904,21]
[343262172,1732535789928,-500.0,0.00038904,21]
[343262173,1732535789959,-500.0,0.00038904,21]
[343262174,1732535789988,-500.0,0.00038904,21]
[343262175,1732535790019,-500.0,0.00038904,21]
[343262176,1732535790050,-500.0,0.00038904,21]
[343262177,1732535790079,-632.02,0.00038904,21]
[343262178,1732535790108,-573.96005782,0.00038904,21]
[343262179,1732535790138,-500.0,0.00038904,21]
[343262180,1732535790353,-500.0,0.00038904,21]
[343262181,1732535790382,-500.0,0.00038904,21]
[343262182,1732535790410,-194.68,0.00038904,21]
[343262183,1732535790443,-522.22,0.00038904,21]
[343262184,1732535790471,-500.0,0.00038904,21]
[343262185,1732535790499,-500.0,0.00038904,21]
[343262186,1732535790528,-1961.52,0.00038904,21]
[343262187,1732535790556,-500.0,0.00038904,21]
[343262188,1732535790584,-382.97,0.00038904,21]
[343262189,1732535790612,-500.0,0.00038904,21]
[343262190,1732535790640,-500.0,0.00038904,21]
[343262191,1732535790668,-500.0,0.00038904,21]
[343262192,1732535790698,-500.0,0.00038904,21]
[343262193,1732535790730,-500.0,0.00038904,21]
[343262194,1732535790758,-500.0,0.00038904,21]
[343262195,1732535790785,-500.0,0.00038904,21]
[343262196,1732535790814,-500.0,0.00038904,21]
[343262197,1732535790843,-500.0,0.00038904,21]
[343262198,1732535790872,-1247.78,0.00038904,21]
[343262199,1732535790902,-500.0,0.00038904,21]
[343262200,1732535790933,-727.18,0.00038904,21]
[343262201,1732535790963,-500.0,0.00038904,21]
[343262202,1732535790996,-500.0,0.00038904,21]
[343262203,1732535791027,-500.0,0.00038904,21]
[343262204,1732535791055,-530.73,0.00038904,21]
[343262205,1732535791083,-500.0,0.00038904,21]
[343262206,1732535791112,-8008.7,0.00038904,21]
[343262207,1732535791141,-500.0,0.00038904,21]
[343262208,1732535791172,-755.79,0.00038904,21]
[343262209,1732535791200,-500.0,0.00038904,21]
[343262210,1732535791229,-500.0,0.00038904,21]
[343262211,1732535791257,-547.72,0.00038904,21]
[343262212,1732535791287,-1204.64,0.00038904,21]
[343262213,1732535791317,-3123.05,0.00038904,21]
[343262214,1732535791345,-681.75,0.00038904,21]
[343262215,1732535791374,-440.72526432,0.00038904,21]
[343262216,1732535791402,-500.0,0.00038904,120]
[343262217,1732535791433,-500.0,0.00038904,21]
[343262218,1732535791459,-913.31,0.00038904,21]
[343262219,1732535791486,-500.0,0.00038904,21]
[343262220,1732535791514,-500.0,0.00038904,21]
[343262221,1732535791542,-500.0,0.00038904,21]
[343262222,1732535791570,-500.0,0.00038904,21]
[343262223,1732535791598,-500.0,0.00038904,21]
[343262224,1732535791625,-500.0,0.00038904,21]
[343262225,1732535791654,-500.0,0.00038904,21]
[343262226,1732535791685,-628.99,0.00038904,21]
[343262227,1732535791714,-547.96,0.00038904,21]
[343262228,1732535791742,-725.63,0.00038904,21]
[343262229,1732535791770,-500.0,0.00038904,21]
[343262230,1732535791800,-500.0,0.00038904,21]
[343262231,1732535791829,-500.0,0.00038904,21]
[343262232,1732535791859,-500.0,0.00038904,21]
[343262233,1732535791888,-714.29,0.00038904,21]
[343262234,1732535791925,-1098.83,0.00038904,21]
[343262235,1732535791955,-500.0,0.00038904,21]
[343262236,1732535791986,-500.0,0.00038904,21]
[343262237,1732535792016,-500.0,0.00038904,21]
[343262238,1732535792045,-500.0,0.00038904,21]
[343262239,1732535792074,-599.99,0.00038904,21]
[343262240,1732535792103,-500.0,0.00038904,21]
[343262241,1732535792131,-500.0,0.00038904,21]
[343262242,1732535792161,-500.0,0.00038904,21]
[343262243,1732535792193,-500.0,0.00038904,21]
[343262244,1732535792221,-1046.56,0.00038904,21]
[343262245,1732535792249,-500.0,0.00038904,21]
[343262246,1732535792278,-500.0,0.00038904,21]
[343262247,1732535792306,-500.0,0.00038904,21]
[343262248,1732535792335,-500.0,0.00038904,21]
[343262249,1732535792364,-3141.32,0.00038904,21]
[343262250,1732535792392,-500.0,0.00038904,21]
[343262251,1732535792427,-500.0,0.00038904,21]
[343262252,1732535792458,-525.44,0.00038904,21]
[343262253,1732535792487,-500.0,0.00038904,21]
[343262254,1732535792515,-500.0,0.00038904,21]
[343262255,1732535792543,-500.0,0.00038904,21]
[343262256,1732535792570,-500.0,0.00038904,21]
[343262257,1732535792598,-500.0,0.00038904,21]
[343262258,1732535792628,-605.03,0.00038904,21]
[343262259,1732535792658,-2806.06,0.00038904,21]
[343262260,1732535792688,-500.0,0.00038904,21]
[343262261,1732535792717,-500.0,0.00038904,21]
[343262262,1732535792747,-1749.61,0.00038904,21]
[343262263,1732535792778,-500.0,0.00038904,21]
[343262264,1732535792807,-520.31,0.00038904,21]
[343262265,1732535792835,-500.0,0.00038904,21]
[343262266,1732535792865,-500.0,0.00038904,21]
[343262267,1732535792899,-500.0,0.00038904,21]
[343262268,1732535792930,-3086.47,0.00038904,21]
[343262269,1732535792960,-500.0,0.00038904,21]
[343262270,1732535792989,-500.0,0.00038904,21]
[343262271,1732535793029,-500.0,0.00038904,21]
[343262272,1732535793059,-500.0,0.00038904,21]
[343262273,1732535793095,-702.92,0.00038904,21]
[343262274,1732535793150,-500.0,0.00038904,21]
[343262275,1732535793181,-553.45,0.00038904,21]
[343262276,1732535793210,-500.0,0.00038904,21]
[343262277,1732535793240,-516.76,0.00038904,21]
[343262278,1732535793269,-599.84,0.00038904,21]
[343262279,1732535793298,-365.64068997,0.00038904,21]
[343262280,1732535793330,-500.0,0.00038904,21]
[343262281,1732535793359,-500.0,0.00038904,21]
[343262282,1732535793387,-500.0,0.00038904,21]
[343262283,1732535793418,-500.0,0.00038904,21]
[343262284,1732535793447,-500.0,0.00038904,21]
[343262285,1732535793477,-500.0,0.00038904,21]
[343262286,1732535793507,-500.0,0.00038904,21]
[343262287,1732535793536,-843.37,0.00038904,21]
[343262288,1732535793565,-500.0,0.00038904,21]
[343262289,1732535793593,-500.0,0.00038904,21]
[343262290,1732535793623,-576.02,0.00038904,21]
[343262291,1732535793652,-881.73,0.00038904,21]
[343262292,1732535793680,-500.0,0.00038904,21]
[343262293,1732535793710,-500.0,0.00038904,21]
[343262294,1732535793742,-500.0,0.00038904,21]
[343262295,1732535793773,-897.11,0.00038904,21]
[343262296,1732535793802,-2379.72,0.00038904,21]
[343262297,1732535793831,-500.0,0.00038904,21]
[343262298,1732535793865,-500.0,0.00038904,21]
[343262299,1732535793899,-500.0,0.00038904,21]
[343262300,1732535793930,-817.33,0.00038904,21]
[343262301,1732535793959,-4321.07,0.00038904,21]
[343262302,1732535793988,-500.0,0.00038904,21]
[343262303,1732535794018,-500.0,0.00038904,21]
[343262304,1732535794047,-500.0,0.00038904,21]
[343262305,1732535794076,-500.0,0.00038904,21]
[343262306,1732535794105,-500.0,0.00038904,21]
[343262307,1732535794134,-1126.29,0.00038904,21]
[343262308,1732535794164,-500.0,0.00038904,21]
[343262309,1732535794197,-2265.92,0.00038904,21]
[343262310,1732535794227,-500.0,0.00038904,21]
[343262311,1732535794256,-500.0,0.00038904,21]
[343262312,1732535794286,-500.0,0.00038904,21]
[343262313,1732535794314,-500.0,0.00038904,21]
[343262314,1732535794343,-500.0,0.00038904,21]
[343262315,1732535794373,-677.59,0.00038904,21]
[343262316,1732535794401,-500.0,0.00038904,21]
[343262317,1732535794430,-500.0,0.00038904,21]
[343262318,1732535794459,-500.0,0.00038904,21]
[343262319,1732535794488,-500.0,0.00038904,21]
[343262320,1732535794517,-532.0,0.00038904,21]
[343262321,1732535794546,-21441.79,0.00038904,21]
[343262322,1732535794577,-3276.7,0.00038904,21]
[343262323,1732535794605,-500.0,0.00038904,21]
[343262324,1732535794633,-500.0,0.00038904,21]
[343262325,1732535794662,-500.0,0.00038904,21]
[343262326,1732535794693,-500.0,0.00038904,21]
[343262327,1732535794723,-500.0,0.00038904,21]
[343262328,1732535794753,-500.0,0.00038904,21]
[343262329,1732535794782,-500.0,0.00038904,21]
[343262330,1732535794815,-500.0,0.00038904,21]
[343262331,1732535794847,-500.0,0.00038904,21]
[343262332,1732535794881,-500.0,0.00038904,21]
[343262333,1732535794911,-500.0,0.00038904,21]
[343262334,1732535794948,-500.0,0.00038904,21]
[343262335,1732535794978,-500.0,0.00038904,21]
[343262336,1732535795008,-500.0,0.00038904,21]
[343262337,1732535795037,-2334.22,0.00038904,21]
[343262338,1732535795067,-678.44,0.00038904,21]
[343262339,1732535795095,-5698.56,0.00038904,21]
[343262340,1732535795123,-500.0,0.00038904,21]
[343262341,1732535795151,-500.0,0.00038904,21]
[343262342,1732535795178,-500.0,0.00038904,21]
[343262343,1732535795207,-500.0,0.00038904,21]
[343262344,1732535795236,-500.0,0.00038904,21]
[343262345,1732535795265,-500.0,0.00038904,21]
[343262346,1732535795294,-500.0,0.00038904,21]
[343262347,1732535795322,-1941.42,0.00038904,21]
[343262348,1732535795350,-500.0,0.00038904,21]
[343262349,1732535795379,-500.0,0.00038904,21]
[343262350,1732535795406,-500.0,0.00038904,21]
[343262351,1732535795436,-500.0,0.00038904,21]
[343262352,1732535795466,-1034.74,0.00038904,21]
[343262353,1732535795495,-2231.16,0.00038904,21]
[343262354,1732535795524,-500.0,0.00038904,21]
[343262355,1732535795552,-500.0,0.00038904,21]
[343262356,1732535795797,-500.0,0.00038904,21]
[343262357,1732535795825,-500.0,0.00038904,21]
[343262358,1732535795853,-1055.46,0.00038904,21]
[343262359,1732535795883,-500.0,0.00038904,21]
[343262360,1732535795911,-500.0,0.00038904,21]
[343262361,1732535795940,-573.6,0.00038904,21]
[343262362,1732535795971,-500.0,0.00038904,21]
[343262363,1732535795999,-500.0,0.00038904,21]
[343262364,1732535796028,-500.0,0.00038904,21]
[343262365,1732535796058,-3033.86,0.00038904,21]
[343262366,1732535796088,-500.0,0.00038904,21]
[343262367,1732535796117,-523.33,0.00038904,21]
[343262368,1732535796145,-500.0,0.00038904,21]
[343262369,1732535796178,-5636.512196,0.00038904,21]
[343262370,1732535886413,800.0,0.00026986,120]
[343262375,1732536006008,800.0,0.00026986,120]
[343262377,1732536183684,800.0,0.00026986,120]
[343262381,1732536273342,768.0,0.000304,2]
[343262382,1732536273994,691.0,0.000304,2]
[343262383,1732536375259,6847.03826178,0.000305,2]
[343262384,1732536377839,170.663,0.00031926,2]
[343262386,1732536416776,32982.29873822,0.0003286,2]
[343262387,1732536416798,16960.35126178,0.0003286,2]
[343262388,1732536487547,629.04,0.00026986,120]
[343262389,1732536493692,151.0,0.0003,120]
[343262412,1732536631959,-151.0,0.00033151,120]
[343262413,1732536631969,-377.3007348,0.00033582,2]
[343262414,1732536631979,-377.30073479,0.00033632,2]
[343262415,1732536631989,-377.30073479,0.00033682,2]
[343262416,1732536631998,-191.0,0.00033782,2]
[343262417,1732536632008,-500.0,0.00033782,2]
[343262418,1732536632018,-419.98267217,0.00033782,2]
[343262419,1732536632028,-685.17,0.00034946,2]
[343262420,1732536632038,-705.8531007,0.00035,30]
[343262421,1732536632048,-151.0,0.0003538,2]
[343262422,1732536632058,-162.16,0.00036032,2]
[343262423,1732536632068,-283.6903637,0.00036191,2]
[343262424,1732536632114,-372.9696363,0.00036191,2]
[343262425,1732536632126,-127.0303637,0.00036301,120]
[343262426,1732536632214,-23.9696363,0.00036301,120]
[343262427,1732536632223,-500.0,0.00036347,2]
[343262428,1732536632233,-500.0,0.00036377,2]
[343262429,1732536632242,-200.0,0.0003658,2]
[343262430,1732536632251,-20865.11273927,0.000368,3]
[343262431,1732536632260,-250.0,0.00036811,120]
[343262432,1732536632269,-200.0,0.00036815,30]
[343262433,1732536632278,-250.0,0.00036816,2]
[343262434,1732536632287,-250.0,0.00036816,2]
[343262435,1732536632297,-299.99,0.00036816,30]
[343262436,1732536632306,-642.53,0.00036816,20]
[343262437,1732536632316,-326.28,0.00036816,2]
[343262438,1732536632329,-275.53,0.00036875,10]
[343262439,1732536632339,-229.61,0.00036875,10]
[343262440,1732536632349,-1000.0,0.00036884,2]
[343262441,1732536632359,-128498.0,0.00036885,2]
[343262442,1732536632370,-6337.09790662,0.0003704,2]
[343262443,1732536632380,-1500.0,0.0003714,120]
[343262444,1732536632390,-907.6,0.0003714,2]
[343262445,1732536632400,-388.68,0.00037186,120]
[343262446,1732536632410,-171.92,0.0003719,2]
[343262447,1732536632420,-156.65344668,0.000372,103]
[343262448,1732536632430,-685.17,0.0003721,2]
[343262449,1732536632440,-300.0,0.00037222,2]
[343262450,1732536632450,-5329.47,0.00037235,63]
[343262451,1732536632460,-152.29,0.00037285,120]
[343262452,1732536632470,-4603.9,0.00037328,2]
[343262453,1732536632479,-171.21,0.00037413,2]
[343262454,1732536632489,-1000.0,0.00037608,2]
[343262455,1732536632499,-1703.39,0.00037635,2]
[343262456,1732536632509,-18937.62937297,0.0003795,2]
[343262457,1732536632519,-31635.0,0.00038,2]
[343262458,1732536632528,-1621.72,0.00038049,2]
[343262459,1732536632538,-190.65596406,0.00038256,2]
[343262460,1732536632548,-481.65402023,0.00038356,2]
[343262461,1732536632558,-500.0,0.00038356,21]
[343262462,1732536632586,-500.0,0.00038356,21]
[343262463,1732536632595,-500.0,0.00038356,21]
[343262464,1732536632605,-500.0,0.00038356,21]
[343262465,1732536632615,-500.0,0.00038356,21]
[343262466,1732536632624,-500.0,0.00038356,21]
[343262467,1732536632634,-500.0,0.00038356,21]
[343262468,1732536632643,-500.0,0.00038356,21]
[343262469,1732536632653,-500.0,0.00038356,21]
[343262470,1732536632663,-500.0,0.00038356,21]
[343262471,1732536632673,-500.0,0.00038356,21]
[343262472,1732536632682,-500.0,0.00038356,21]
[343262473,1732536632691,-505.08691947,0.00038356,5]
[343262474,1732536632701,-500.0,0.00038356,21]
[343262475,1732536632711,-500.0,0.00038356,21]
[343262476,1732536632720,-500.0,0.00038356,21]
[343262477,1732536632730,-500.0,0.00038356,21]
[343262478,1732536632739,-500.0,0.00038356,21]
[343262479,1732536632749,-500.0,0.00038356,21]
[343262480,1732536632759,-209.77028333,0.00038356,21]
[343262481,1732536632769,-500.0,0.00038356,21]
[343262482,1732536632778,-500.0,0.00038356,21]
[343262483,1732536632788,-500.0,0.00038356,21]
[343262484,1732536632797,-500.0,0.00038356,21]
[343262485,1732536632806,-500.0,0.00038356,21]
[343262486,1732536632816,-524.69,0.00038356,21]
[343262487,1732536632829,-500.0,0.00038356,21]
[343262488,1732536632839,-500.0,0.00038356,21]
[343262490,1732536632848,-500.0,0.00038356,21]
[343262492,1732536632858,-500.0,0.00038356,21]
[343262494,1732536632867,-497.4463595,0.00038356,21]
[343262495,1732536632876,-500.0,0.00038356,21]
[343262497,1732536632885,-500.0,0.00038356,21]
[343262499,1732536632895,-503.99305185,0.00038356,21]
[343262501,1732536632905,-500.0,0.00038356,21]
[343262503,1732536632914,-500.0,0.00038356,21]
[343262506,1732536632923,-500.0,0.00038356,21]
[343262507,1732536632933,-500.0,0.00038356,21]
[343262509,1732536632942,-500.0,0.00038356,21]
[343262512,1732536632952,-500.0,0.00038356,21]
[343262514,1732536632962,-500.0,0.00038356,21]
[343262515,1732536632971,-500.0,0.00038356,21]
[343262518,1732536632981,-500.0,0.00038356,21]
[343262519,1732536632991,-500.0,0.00038356,21]
[343262521,1732536633001,-500.0,0.00038356,21]
[343262523,1732536633011,-500.0,0.00038356,21]
[343262525,1732536633021,-500.0,0.00038356,21]
[343262527,1732536633030,-500.0,0.00038356,21]
[343262529,1732536633040,-500.0,0.00038356,21]
[343262531,1732536633050,-500.0,0.00038356,21]
[343262533,1732536633060,-500.0,0.00038356,21]
[343262535,1732536633069,-500.0,0.00038356,21]
[343262536,1732536633083,-500.0,0.00038356,21]
[343262537,1732536633096,-347.57,0.00038356,21]
[343262538,1732536633107,-500.0,0.00038356,21]
[343262539,1732536633119,-500.0,0.00038356,21]
[343262540,1732536633129,-675.2,0.00038356,21]
[343262541,1732536633139,-500.0,0.00038356,21]
[343262542,1732536633149,-500.0,0.00038356,7]